{"text_format":"3","workbook":"xlsx","n_sheets":2,"sheets":["INÍCIO","ORÇAMENTO PESSOAL MENSAL"],"read":"whole","date_system":"1900"}

{"sheet":"INÍCIO","index":0,"n_rows":7,"n_cols":2,"rows_kept":7}
[null,"SOBRE ESTE MODELO"]
[null,"Use esta Planilha de orçamento pessoal mensal para controlar sua renda e custos mensais previstos e reais."]
[null,"Insira as despesas incorridas nas várias categorias das respectivas tabelas."]
[null,"O Saldo previsto, o Saldo real e a Diferença são calculados automaticamente."]
[null,"Observação: "]
[null,"instruções adicionais são fornecidas na coluna A da planilha ORÇAMENTO PESSOAL MENSAL. Este texto está oculto de propósito. Para removê-lo, selecione a coluna A e selecione Excluir. Para reexibir o texto, selecione a coluna A e altere a cor da fonte."]
[null,"Saiba mais sobre as tabelas desta planilha pressionando Shift e F10 em uma tabela, selecione a opção TABELA e selecione TEXTO ALTERNATIVO."]

{"sheet":"ORÇAMENTO PESSOAL MENSAL","index":1,"n_rows":64,"n_cols":10,"rows_kept":64,"merged":[[3,1,5,1],[3,2,3,3],[3,6,4,8],[3,9,4,9],[4,2,4,3],[5,2,5,3],[5,6,6,8],[5,9,6,9],[7,1,9,1],[7,2,7,3],[7,6,8,8],[7,9,8,9],[8,2,8,3],[9,2,9,3],[22,6,22,9],[23,1,23,4],[31,6,31,9],[33,1,33,4],[38,6,38,9],[40,1,40,4],[44,6,44,9],[46,1,46,4],[50,6,50,9],[54,1,54,4],[57,6,57,9],[58,6,59,8],[58,9,59,9],[60,6,61,8],[60,9,61,9],[62,6,63,8],[62,9,63,9],[64,1,64,4]]}
["Crie um orçamento pessoal mensal nesta planilha. Instruções úteis sobre como usar esta planilha estão nas células desta coluna. Pressione Seta para baixo para começar."]
["O cabeçalho desta planilha está na célula à direita. A próxima instrução está na célula A4.","ORÇAMENTO PESSOAL MENSAL"]
[]
["O rótulo Renda mensal prevista está na célula à direita. Insira Renda 1 na célula E4 e Renda extra em E5 para calcular a Renda mensal total em E6. A próxima instrução está na célula A6.","RENDA MENSAL PREVISTA","Renda 1",null,{"v":4300,"d":"R$ 4,300.00"},null,"O SALDO PREVISTO \n(renda menos custo previsto)",null,null,{"$f":"E6-J59","v":{"v":3405,"d":"R$ 3,405.00"}}]
[null,null,"Renda extra",null,{"v":300,"d":"R$ 300.00"}]
["O Saldo previsto é calculado automaticamente na célula J4, o Saldo real em J6 e a Diferença em J8. A próxima instrução está na célula A8.",null,"Renda mensal total",null,{"$f":"SUM(E4:E5)","v":{"v":4600,"d":"R$ 4,600.00"}},null,"O SALDO REAL \n(renda menos custo real)",null,null,{"$f":"E10-J61","v":{"v":3064,"d":"R$ 3,064.00"}}]
[]
["O rótulo de Renda mensal real está na célula à direita. Insira Renda 1 na célula E8 e Renda extra em E9 para calcular a Renda mensal total em E10. A próxima instrução está na célula A12.","RENDA MENSAL REAL","Renda 1",null,{"v":4000,"d":"R$ 4,000.00"},null,"DIFERENÇA \n(real menos previsto)",null,null,{"$f":"J6-J4","v":{"v":-341,"d":"-R$ 341.00"}}]
[null,null,"Renda extra",null,{"v":300,"d":"R$ 300.00"}]
[null,null,"Renda mensal total",null,{"$f":"SUM(E8:E9)","v":{"v":4300,"d":"R$ 4,300.00"}}]
[]
["Insira os detalhes na tabela Moradia começando pela célula à direita e na tabela Entretenimento começando pela célula G12. A próxima instrução está na célula A25.","MORADIA","Custo previsto","Custo Real","Diferença",null,"ENTRETENIMENTO","Custo previsto","Custo Real","Diferença"]
[null,"Hipoteca ou aluguel",{"v":1000,"d":"R$ 1,000.00"},{"v":1000,"d":"R$ 1,000.00"},{"$f":"Moradia[[#This Row],[Custo previsto]]-Moradia[[#This Row],[Custo Real]]","v":{"v":0,"d":"R$ 0.00"}},null,"Vídeo/DVD",null,null,{"$f":"Entretenimento[[#This Row],[Custo previsto]]-Entretenimento[[#This Row],[Custo Real]]","v":{"v":0,"d":"R$ 0.00"}}]
[null,"Telefone",{"v":54,"d":"R$ 54.00"},{"v":100,"d":"R$ 100.00"},{"$f":"Moradia[[#This Row],[Custo previsto]]-Moradia[[#This Row],[Custo Real]]","v":{"v":-46,"d":"-R$ 46.00"}},null,"CDs",null,null,{"$f":"Entretenimento[[#This Row],[Custo previsto]]-Entretenimento[[#This Row],[Custo Real]]","v":{"v":0,"d":"R$ 0.00"}}]
[null,"Conta de luz",{"v":44,"d":"R$ 44.00"},{"v":56,"d":"R$ 56.00"},{"$f":"Moradia[[#This Row],[Custo previsto]]-Moradia[[#This Row],[Custo Real]]","v":{"v":-12,"d":"-R$ 12.00"}},null,"Filmes",null,null,{"$f":"Entretenimento[[#This Row],[Custo previsto]]-Entretenimento[[#This Row],[Custo Real]]","v":{"v":0,"d":"R$ 0.00"}}]
[null,"Gás",{"v":22,"d":"R$ 22.00"},{"v":28,"d":"R$ 28.00"},{"$f":"Moradia[[#This Row],[Custo previsto]]-Moradia[[#This Row],[Custo Real]]","v":{"v":-6,"d":"-R$ 6.00"}},null,"Shows",null,null,{"$f":"Entretenimento[[#This Row],[Custo previsto]]-Entretenimento[[#This Row],[Custo Real]]","v":{"v":0,"d":"R$ 0.00"}}]
[null,"Água e esgoto",{"v":8,"d":"R$ 8.00"},{"v":8,"d":"R$ 8.00"},{"$f":"Moradia[[#This Row],[Custo previsto]]-Moradia[[#This Row],[Custo Real]]","v":{"v":0,"d":"R$ 0.00"}},null,"Eventos esportivos",null,null,{"$f":"Entretenimento[[#This Row],[Custo previsto]]-Entretenimento[[#This Row],[Custo Real]]","v":{"v":0,"d":"R$ 0.00"}}]
[null,"TV a cabo",{"v":34,"d":"R$ 34.00"},{"v":34,"d":"R$ 34.00"},{"$f":"Moradia[[#This Row],[Custo previsto]]-Moradia[[#This Row],[Custo Real]]","v":{"v":0,"d":"R$ 0.00"}},null,"Teatro ao vivo",null,null,{"$f":"Entretenimento[[#This Row],[Custo previsto]]-Entretenimento[[#This Row],[Custo Real]]","v":{"v":0,"d":"R$ 0.00"}}]
[null,"Coleta de lixo",{"v":10,"d":"R$ 10.00"},{"v":10,"d":"R$ 10.00"},{"$f":"Moradia[[#This Row],[Custo previsto]]-Moradia[[#This Row],[Custo Real]]","v":{"v":0,"d":"R$ 0.00"}},null,"Outros",null,null,{"$f":"Entretenimento[[#This Row],[Custo previsto]]-Entretenimento[[#This Row],[Custo Real]]","v":{"v":0,"d":"R$ 0.00"}}]
[null,"Manutenção ou reparos",{"v":23,"d":"R$ 23.00"},{"v":0,"d":"R$ 0.00"},{"$f":"Moradia[[#This Row],[Custo previsto]]-Moradia[[#This Row],[Custo Real]]","v":{"v":23,"d":"R$ 23.00"}},null,"Outros",null,null,{"$f":"Entretenimento[[#This Row],[Custo previsto]]-Entretenimento[[#This Row],[Custo Real]]","v":{"v":0,"d":"R$ 0.00"}}]
[null,"Suprimentos",{"v":0,"d":"R$ 0.00"},{"v":0,"d":"R$ 0.00"},{"$f":"Moradia[[#This Row],[Custo previsto]]-Moradia[[#This Row],[Custo Real]]","v":{"v":0,"d":"R$ 0.00"}},null,"Outros",null,null,{"$f":"Entretenimento[[#This Row],[Custo previsto]]-Entretenimento[[#This Row],[Custo Real]]","v":{"v":0,"d":"R$ 0.00"}}]
[null,"Outros",{"v":0,"d":"R$ 0.00"},{"v":0,"d":"R$ 0.00"},{"$f":"Moradia[[#This Row],[Custo previsto]]-Moradia[[#This Row],[Custo Real]]","v":{"v":0,"d":"R$ 0.00"}},null,"Subtotal",null,null,{"$f":"SUBTOTAL(109,Entretenimento[Diferença])","v":{"v":0,"d":"R$ 0.00"}}]
[null,"Subtotal",null,null,{"$f":"SUBTOTAL(109,Moradia[Diferença])","v":{"v":-41,"d":"-R$ 41.00"}}]
[{"$nulls":6},"EMPRÉSTIMOS","Custo previsto","Custo Real","Diferença"]
["Insira os detalhes na tabela Transporte começando pela célula à direita e na tabela Empréstimos começando pela célula G24. A próxima instrução está na célula A35.","TRANSPORTE","Custo previsto","Custo Real","Diferença",null,"Pessoal",null,null,{"$f":"Empréstimos[[#This Row],[Custo previsto]]-Empréstimos[[#This Row],[Custo Real]]","v":{"v":0,"d":"R$ 0.00"}}]
[null,"Pagamento do veículo",null,null,{"$f":"Transporte[[#This Row],[Custo previsto]]-Transporte[[#This Row],[Custo Real]]","v":{"v":0,"d":"R$ 0.00"}},null,"Estudante",null,null,{"$f":"Empréstimos[[#This Row],[Custo previsto]]-Empréstimos[[#This Row],[Custo Real]]","v":{"v":0,"d":"R$ 0.00"}}]
[null,"Transporte público/táxi",null,null,{"$f":"Transporte[[#This Row],[Custo previsto]]-Transporte[[#This Row],[Custo Real]]","v":{"v":0,"d":"R$ 0.00"}},null,"Cartão de crédito",null,null,{"$f":"Empréstimos[[#This Row],[Custo previsto]]-Empréstimos[[#This Row],[Custo Real]]","v":{"v":0,"d":"R$ 0.00"}}]
[null,"Seguro",null,null,{"$f":"Transporte[[#This Row],[Custo previsto]]-Transporte[[#This Row],[Custo Real]]","v":{"v":0,"d":"R$ 0.00"}},null,"Cartão de crédito",null,null,{"$f":"Empréstimos[[#This Row],[Custo previsto]]-Empréstimos[[#This Row],[Custo Real]]","v":{"v":0,"d":"R$ 0.00"}}]
[null,"Licenciamento",null,null,{"$f":"Transporte[[#This Row],[Custo previsto]]-Transporte[[#This Row],[Custo Real]]","v":{"v":0,"d":"R$ 0.00"}},null,"Cartão de crédito",null,null,{"$f":"Empréstimos[[#This Row],[Custo previsto]]-Empréstimos[[#This Row],[Custo Real]]","v":{"v":0,"d":"R$ 0.00"}}]
[null,"Combustível",null,null,{"$f":"Transporte[[#This Row],[Custo previsto]]-Transporte[[#This Row],[Custo Real]]","v":{"v":0,"d":"R$ 0.00"}},null,"Outros",null,null,{"$f":"Empréstimos[[#This Row],[Custo previsto]]-Empréstimos[[#This Row],[Custo Real]]","v":{"v":0,"d":"R$ 0.00"}}]
[null,"Manutenção",null,null,{"$f":"Transporte[[#This Row],[Custo previsto]]-Transporte[[#This Row],[Custo Real]]","v":{"v":0,"d":"R$ 0.00"}},null,"Subtotal",null,null,{"$f":"SUBTOTAL(109,Empréstimos[Diferença])","v":{"v":0,"d":"R$ 0.00"}}]
[null,"Outros",null,null,{"$f":"Transporte[[#This Row],[Custo previsto]]-Transporte[[#This Row],[Custo Real]]","v":{"v":0,"d":"R$ 0.00"}}]
[null,"Subtotal",null,null,{"$f":"SUBTOTAL(109,Transporte[Diferença])","v":{"v":0,"d":"R$ 0.00"}},null,"IMPOSTOS","Custo previsto","Custo Real","Diferença"]
[{"$nulls":6},"Federal",null,null,{"$f":"Impostos[[#This Row],[Custo previsto]]-Impostos[[#This Row],[Custo Real]]","v":{"v":0,"d":"R$ 0.00"}}]
["Insira os detalhes na tabela Seguro começando pela célula à direita e na tabela Impostos começando pela célula G33. A próxima instrução está na célula A42.","SEGURO","Custo previsto","Custo Real","Diferença",null,"Estadual",null,null,{"$f":"Impostos[[#This Row],[Custo previsto]]-Impostos[[#This Row],[Custo Real]]","v":{"v":0,"d":"R$ 0.00"}}]
[null,"Residencial",null,null,{"$f":"Seguro[[#This Row],[Custo previsto]]-Seguro[[#This Row],[Custo Real]]","v":{"v":0,"d":"R$ 0.00"}},null,"Local",null,null,{"$f":"Impostos[[#This Row],[Custo previsto]]-Impostos[[#This Row],[Custo Real]]","v":{"v":0,"d":"R$ 0.00"}}]
[null,"Saúde",null,null,{"$f":"Seguro[[#This Row],[Custo previsto]]-Seguro[[#This Row],[Custo Real]]","v":{"v":0,"d":"R$ 0.00"}},null,"Outros",null,null,{"$f":"Impostos[[#This Row],[Custo previsto]]-Impostos[[#This Row],[Custo Real]]","v":{"v":0,"d":"R$ 0.00"}}]
[null,"Vida",null,null,{"$f":"Seguro[[#This Row],[Custo previsto]]-Seguro[[#This Row],[Custo Real]]","v":{"v":0,"d":"R$ 0.00"}},null,"Subtotal",null,null,{"$f":"SUBTOTAL(109,Impostos[Diferença])","v":{"v":0,"d":"R$ 0.00"}}]
[null,"Outros",null,null,{"$f":"Seguro[[#This Row],[Custo previsto]]-Seguro[[#This Row],[Custo Real]]","v":{"v":0,"d":"R$ 0.00"}}]
[null,"Subtotal",null,null,{"$f":"SUBTOTAL(109,Seguro[Diferença])","v":{"v":0,"d":"R$ 0.00"}},null,"POUPANÇAS OU INVESTIMENTOS","Custo previsto","Custo Real","Diferença"]
[{"$nulls":6},"Aposentadoria",null,null,{"$f":"Poupança[[#This Row],[Custo previsto]]-Poupança[[#This Row],[Custo Real]]","v":{"v":0,"d":"R$ 0.00"}}]
["Insira os detalhes na tabela Alimentação começando pela célula à direita e na tabela Poupança começando pela célula G40. A próxima instrução está na célula A48.","ALIMENTAÇÃO","Custo previsto","Custo Real","Diferença",null,"Investimentos",null,null,{"$f":"Poupança[[#This Row],[Custo previsto]]-Poupança[[#This Row],[Custo Real]]","v":{"v":0,"d":"R$ 0.00"}}]
[null,"Supermercado",null,null,{"$f":"Alimentação[[#This Row],[Custo previsto]]-Alimentação[[#This Row],[Custo Real]]","v":{"v":0,"d":"R$ 0.00"}},null,"Outros",null,null,{"$f":"Poupança[[#This Row],[Custo previsto]]-Poupança[[#This Row],[Custo Real]]","v":{"v":0,"d":"R$ 0.00"}}]
[null,"Jantar fora",null,null,{"$f":"Alimentação[[#This Row],[Custo previsto]]-Alimentação[[#This Row],[Custo Real]]","v":{"v":0,"d":"R$ 0.00"}},null,"Subtotal",null,null,{"$f":"SUBTOTAL(109,Poupança[Diferença])","v":{"v":0,"d":"R$ 0.00"}}]
[null,"Outros",null,null,{"$f":"Alimentação[[#This Row],[Custo previsto]]-Alimentação[[#This Row],[Custo Real]]","v":{"v":0,"d":"R$ 0.00"}}]
[null,"Subtotal",null,null,{"$f":"SUBTOTAL(109,Alimentação[Diferença])","v":{"v":0,"d":"R$ 0.00"}},null,"PRESENTES E DOAÇÕES","Custo previsto","Custo Real","Diferença"]
[{"$nulls":6},"Instituição beneficente 1",null,null,{"$f":"Presentes[[#This Row],[Custo previsto]]-Presentes[[#This Row],[Custo Real]]","v":{"v":0,"d":"R$ 0.00"}}]
["Insira os detalhes na tabela Animais_de_estimação começando pela célula à direita e na tabela Presentes começando pela célula G46. A próxima instrução está na célula A56.","ANIMAIS DE ESTIMAÇÃO","Custo previsto","Custo Real","Diferença",null,"Instituição beneficente 2",null,null,{"$f":"Presentes[[#This Row],[Custo previsto]]-Presentes[[#This Row],[Custo Real]]","v":{"v":0,"d":"R$ 0.00"}}]
[null,"Alimentação",null,null,{"$f":"Animais_de_estimação[[#This Row],[Custo previsto]]-Animais_de_estimação[[#This Row],[Custo Real]]","v":{"v":0,"d":"R$ 0.00"}},null,"Instituição beneficente 3",null,null,{"$f":"Presentes[[#This Row],[Custo previsto]]-Presentes[[#This Row],[Custo Real]]","v":{"v":0,"d":"R$ 0.00"}}]
[null,"Médico",null,null,{"$f":"Animais_de_estimação[[#This Row],[Custo previsto]]-Animais_de_estimação[[#This Row],[Custo Real]]","v":{"v":0,"d":"R$ 0.00"}},null,"Subtotal",null,null,{"$f":"SUBTOTAL(109,Presentes[Diferença])","v":{"v":0,"d":"R$ 0.00"}}]
[null,"Banho e tosa",null,null,{"$f":"Animais_de_estimação[[#This Row],[Custo previsto]]-Animais_de_estimação[[#This Row],[Custo Real]]","v":{"v":0,"d":"R$ 0.00"}}]
[null,"Brinquedos",null,null,{"$f":"Animais_de_estimação[[#This Row],[Custo previsto]]-Animais_de_estimação[[#This Row],[Custo Real]]","v":{"v":0,"d":"R$ 0.00"}},null,"ASSESSORIA JURÍDICA","Custo previsto","Custo Real","Diferença"]
[null,"Outros",null,null,{"$f":"Animais_de_estimação[[#This Row],[Custo previsto]]-Animais_de_estimação[[#This Row],[Custo Real]]","v":{"v":0,"d":"R$ 0.00"}},null,"Advogado",null,null,{"$f":"Assessoria_jurídica[[#This Row],[Custo previsto]]-Assessoria_jurídica[[#This Row],[Custo Real]]","v":{"v":0,"d":"R$ 0.00"}}]
[null,"Subtotal",null,null,{"$f":"SUBTOTAL(109,Animais_de_estimação[Diferença])","v":{"v":0,"d":"R$ 0.00"}},null,"Pensão alimentícia",null,null,{"$f":"Assessoria_jurídica[[#This Row],[Custo previsto]]-Assessoria_jurídica[[#This Row],[Custo Real]]","v":{"v":0,"d":"R$ 0.00"}}]
[{"$nulls":6},"Pagamentos em garantia ou julgamento",null,null,{"$f":"Assessoria_jurídica[[#This Row],[Custo previsto]]-Assessoria_jurídica[[#This Row],[Custo Real]]","v":{"v":0,"d":"R$ 0.00"}}]
["Insira os detalhes na tabela CuidadosPessoais começando pela célula à direita e na tabela Assessoria_jurídica começando pela célula G52. A próxima instrução está na célula A59.","CUIDADOS PESSOAIS","Custo previsto","Custo Real","Diferença",null,"Outros",null,null,{"$f":"Assessoria_jurídica[[#This Row],[Custo previsto]]-Assessoria_jurídica[[#This Row],[Custo Real]]","v":{"v":0,"d":"R$ 0.00"}}]
[null,"Médico",null,null,{"$f":"CuidadosPessoais[[#This Row],[Custo previsto]]-CuidadosPessoais[[#This Row],[Custo Real]]","v":{"v":0,"d":"R$ 0.00"}},null,"Subtotal",null,null,{"$f":"SUBTOTAL(109,Assessoria_jurídica[Diferença])","v":{"v":0,"d":"R$ 0.00"}}]
[null,"Cabelo/unhas",null,null,{"$f":"CuidadosPessoais[[#This Row],[Custo previsto]]-CuidadosPessoais[[#This Row],[Custo Real]]","v":{"v":0,"d":"R$ 0.00"}}]
["O Custo total previsto é calculado automaticamente na célula J59, o Custo total real em J61 e a Diferença total em J63.","Vestuário",null,null,{"$f":"CuidadosPessoais[[#This Row],[Custo previsto]]-CuidadosPessoais[[#This Row],[Custo Real]]","v":{"v":0,"d":"R$ 0.00"}},null,"CUSTO TOTAL PREVISTO",null,null,{"$f":"SUBTOTAL(109,Moradia[Custo previsto],Transporte[Custo previsto],Seguro[Custo previsto],Alimentação[Custo previsto],Animais_de_estimação[Custo previsto],CuidadosPessoais[Custo previsto],Entretenimento[Custo previsto],Empréstimos[Custo previsto],Impostos[Custo previsto],Poupança[Custo previsto],Presentes[Custo previsto],Assessoria_jurídica[Custo previsto])","v":{"v":1195,"d":"R$ 1,195.00"}}]
[null,"Lavagem a seco",null,null,{"$f":"CuidadosPessoais[[#This Row],[Custo previsto]]-CuidadosPessoais[[#This Row],[Custo Real]]","v":{"v":0,"d":"R$ 0.00"}}]
[null,"Academia",null,null,{"$f":"CuidadosPessoais[[#This Row],[Custo previsto]]-CuidadosPessoais[[#This Row],[Custo Real]]","v":{"v":0,"d":"R$ 0.00"}},null,"CUSTO TOTAL REAL",null,null,{"$f":"SUBTOTAL(109,Moradia[Custo Real],Transporte[Custo Real],Seguro[Custo Real],Alimentação[Custo Real],Animais_de_estimação[Custo Real],CuidadosPessoais[Custo Real],Entretenimento[Custo Real],Empréstimos[Custo Real],Impostos[Custo Real],Poupança[Custo Real],Presentes[Custo Real],Assessoria_jurídica[Custo Real])","v":{"v":1236,"d":"R$ 1,236.00"}}]
[null,"Impostos ou taxas de organização",null,null,{"$f":"CuidadosPessoais[[#This Row],[Custo previsto]]-CuidadosPessoais[[#This Row],[Custo Real]]","v":{"v":0,"d":"R$ 0.00"}}]
[null,"Outros",null,null,{"$f":"CuidadosPessoais[[#This Row],[Custo previsto]]-CuidadosPessoais[[#This Row],[Custo Real]]","v":{"v":0,"d":"R$ 0.00"}},null,"DIFERENÇA TOTAL",null,null,{"$f":"J59-J61","v":{"v":-41,"d":"-R$ 41.00"}}]
[null,"Subtotal",null,null,{"$f":"SUBTOTAL(109,CuidadosPessoais[Diferença])","v":{"v":0,"d":"R$ 0.00"}}]